bitfinex-derivatives/quotes_SOLF0:USTF0_20260305
["timestamp","ask_amount","ask_price","bid_price","bid_amount"]
[1772739124506,10.115,88.959,88.921,3.62616946]
[1772739126414,10.115,88.959,88.905,3.62616946]
[1772739126415,10.117,88.946,88.905,3.62616946]
[1772739127813,10.117,88.946,88.9,3.56514809]
[1772739127814,10.117,88.94,88.9,3.56514809]
[1772739128412,10.118,88.931,88.891,3.62616946]
[1772739128618,7.53150767,88.94,88.892,3.62616946]
[1772739128916,3.96635958,88.94,88.9,3.56514809]
[1772739129814,10.118,88.933,88.9,3.56514809]
[1772739130020,10.118,88.933,88.892,3.62616946]
[1772739130416,3.56514809,88.93,88.88,13.68914809]
[1772739130616,7.53150767,88.93,88.88,13.68914809]
[1772739130819,10.119,88.926,88.88,13.68914809]
[1772739131017,10.119,88.926,88.881,3.62616946]
[1772739131220,3.56514809,88.92,88.881,3.62616946]
[1772739131619,3.96635958,88.925,88.881,3.62616946]
[1772739132420,3.96635958,88.925,88.883,10.124]
[1772739133223,3.96635958,88.925,88.881,3.62616946]
[1772739134324,3.96635958,88.925,88.882,10.124]
[1772739135336,3.56514809,88.9,88.835,3.62616946]
[1772739135623,20.232,88.955,88.841,3.62616946]
[1772739135624,3.56514809,88.89,88.841,3.62616946]
[1772739135823,3.56514809,88.89,88.847,10.128]
[1772739137823,3.56514809,88.89,88.841,3.62616946]
[1772739138420,3.56514809,88.88,88.841,3.62616946]
[1772739138727,3.56514809,88.89,88.841,3.62616946]
[1772739139024,3.56514809,88.88,88.832,10.129]
[1772739139726,3.96635958,88.878,88.832,10.129]
[1772739140131,3.96635958,88.878,88.836,10.129]
[1772739140330,3.96635958,88.878,88.836,13.75516946]
[1772739140630,3.56514809,88.89,88.841,3.62616946]
[1772739140928,7.53150767,88.9,88.851,3.62616946]
[1772739141231,20.237,88.933,88.836,3.62616946]
[1772739141232,3.56514809,88.89,88.836,3.62616946]
[1772739141430,3.56514809,88.89,88.844,10.128]
[1772739142336,3.56514809,88.89,88.85,10.127]
[1772739142633,3.96635958,88.918,88.851,3.62616946]
[1772739142835,3.96635958,88.918,88.88,3.56508423]
[1772739143136,3.96635958,88.929,88.88,3.56508423]
[1772739143436,3.96635958,88.929,88.871,3.62616946]
[1772739144531,3.96635958,88.929,88.881,3.62616946]
[1772739145536,3.96635958,88.929,88.883,10.124]
[1772739146536,10.119,88.928,88.883,10.124]
[1772739146732,3.96635958,88.929,88.89,10.123]
[1772739146937,3.96635958,88.929,88.881,3.62616946]
[1772739147337,3.96635958,88.929,88.882,10.124]
[1772739148040,3.66186493,88.928,88.881,3.62616946]
[1772739148736,3.56508423,88.92,88.881,3.62616946]
[1772739149337,3.66186493,88.928,88.881,3.62616946]
[1772739151741,7.1738813,88.92,88.87,3.56508423]
[1772739151944,7.1738813,88.92,88.871,3.97532199]
[1772739152737,10.12,88.914,88.871,14.10032199]
[1772739153448,3.56508423,88.91,88.871,3.97532199]
[1772739153749,3.60879707,88.899,88.856,3.97532199]
[1772739154447,13.73079707,88.899,88.857,10.127]
[1772739155247,3.60879707,88.899,88.857,10.127]
[1772739155448,3.56508423,88.92,88.871,3.97532199]
[1772739155647,7.1738813,88.93,88.88,3.56508423]
[1772739156548,3.56508423,88.91,88.871,3.97532199]
[1772739161048,3.60879707,88.899,88.851,3.97532199]
[1772739161354,3.56508423,88.89,88.851,3.97532199]
[1772739162254,3.60879707,88.879,88.837,3.97532199]
[1772739162466,3.60879707,88.879,88.831,10.13]
[1772739162653,3.56508423,88.87,88.821,3.97532199]
[1772739163349,10.124,88.878,88.824,3.97532199]
[1772739163655,3.56508423,88.87,88.824,3.97532199]
[1772739164051,3.56508423,88.86,88.816,10.131]
[1772739164251,3.60879707,88.868,88.811,3.97532199]
[1772739164556,3.56508423,88.86,88.811,3.97532199]
[1772739164753,7.1738813,88.86,88.811,3.97532199]
[1772739165256,7.1738813,88.87,88.821,3.97532199]
[1772739165456,3.60879707,88.869,88.821,3.97532199]
[1772739166158,3.60879707,88.869,88.823,3.97532199]
[1772739167055,3.56508423,88.86,88.823,3.97532199]
[1772739167454,3.56508423,88.87,88.824,3.97532199]
[1772739168960,7.1738813,88.87,88.824,3.97532199]
[1772739169357,3.56508423,88.86,88.81,3.56508423]
[1772739169562,3.60879707,88.849,88.801,3.97532199]
[1772739169764,3.56508423,88.85,88.801,3.97532199]
[1772739170065,7.1738813,88.86,88.81,3.56508423]
[1772739170258,3.56508423,88.87,88.811,3.97532199]
[1772739170459,3.56508423,88.87,88.767,20.274]
[1772739170460,3.60879707,88.875,88.821,3.97532199]
[1772739170758,3.60879707,88.875,88.82,3.56508423]
[1772739170759,3.56508423,88.87,88.83,7.54040622]
[1772739170964,3.60879707,88.875,88.83,7.54040622]
[1772739171965,3.60879707,88.875,88.83,3.97532199]
[1772739172165,3.56508423,88.87,88.83,3.97532199]
[1772739172570,3.60879707,88.875,88.83,3.97532199]
[1772739174571,10.123,88.885,88.831,3.97532199]
[1772739175370,10.123,88.885,88.832,3.97532199]
[1772739175572,3.60879707,88.881,88.832,3.97532199]
[1772739176571,3.56508423,88.88,88.832,3.97532199]
[1772739178174,3.60879707,88.878,88.823,10.13]
[1772739178474,3.60879707,88.878,88.824,3.97532199]
[1772739179171,3.56508423,88.89,88.841,3.97532199]
[1772739179872,3.56508423,88.88,88.841,3.97532199]
[1772739180071,3.60879707,88.869,88.82,3.56508423]
[1772739180467,3.60879707,88.869,88.829,10.13]
[1772739180668,3.60879707,88.869,88.83,3.56508423]
[1772739181467,3.64221942,88.883,88.832,3.7223348]
[1772739181871,3.56508423,88.89,88.841,3.7223348]
[1772739182071,10.124,88.882,88.841,3.7223348]
[1772739182275,7.20730365,88.89,88.841,3.7223348]
[1772739182775,3.64221942,88.889,88.841,3.7223348]
[1772739183375,3.56508423,88.86,88.81,3.56508423]
[1772739183672,8.55375682,88.92,88.821,3.7223348]
[1772739183673,3.56508423,88.87,88.821,3.7223348]
[1772739184378,13.69008423,88.87,88.821,3.7223348]
[1772739184576,3.56508423,88.88,88.831,3.7223348]
[1772739184773,21.02549053,88.932,88.766,157.693]
[1772739184774,7.20730365,88.91,88.86,3.56508423]
[1772739184969,3.64221942,88.909,88.851,3.7223348]
[1772739185373,3.64221942,88.886,88.831,3.7223348]
[1772739185569,3.64221942,88.879,88.831,3.7223348]
[1772739186179,3.64221942,88.879,88.84,3.56508423]
[1772739190384,10.124,88.878,88.84,3.56508423]
[1772739190884,10.123,88.885,88.84,3.56508423]
[1772739191184,10.123,88.885,88.821,3.7223348]
[1772739191185,3.56508423,88.87,88.821,3.7223348]
[1772739191387,3.56508423,88.89,88.839,3.7223348]
[1772739191580,3.64221942,88.893,88.841,3.7223348]
[1772739191776,3.64221942,88.893,88.85,3.56508423]
[1772739191981,3.64221942,88.893,88.85,7.28741903]
[1772739193883,3.64221942,88.883,88.831,3.7223348]
[1772739194282,3.64221942,88.883,88.84,3.56508423]
[1772739195183,3.64221942,88.9,88.851,3.7223348]
[1772739195489,3.64221942,88.913,88.86,7.28741903]
[1772739196593,10.121,88.91,88.862,10.126]
[1772739197491,3.64221942,88.928,88.884,3.7223348]
[1772739197694,3.64221942,88.942,88.89,3.56508423]
[1772739197990,3.64221942,88.942,88.9,3.56508423]
[1772739198191,10.117,88.941,88.9,3.56508423]
[1772739198388,3.64221942,88.959,88.91,3.56508423]
[1772739198782,3.64221942,88.941,88.89,3.56508423]
[1772739199487,3.64221942,88.941,88.9,3.56508423]
[1772739199693,10.116,88.947,88.91,3.56508423]
[1772739200592,3.64221942,88.954,88.91,3.56508423]
[1772739201690,10.116,88.952,88.91,3.56508423]
[1772739203292,10.117,88.944,88.91,3.56508423]
[1772739203490,10.117,88.944,88.859,20.84272215]
[1772739203491,1.95713976,88.974,88.93,3.56508423]
[1772739203689,3.64221942,88.977,88.93,3.56508423]
[1772739203890,3.64221942,88.947,88.91,3.56508423]
[1772739204490,3.64221942,88.947,88.91,3.55985124]
[1772739204987,3.64221942,88.947,88.903,3.7223348]
[1772739205196,3.64221942,88.939,88.89,3.55985124]
[1772739205689,10.116,88.946,88.9,7.28218604]
[1772739205893,10.116,88.946,88.901,3.7223348]
[1772739206195,10.116,88.946,88.91,3.55985124]
[1772739208195,3.55985124,88.97,88.92,3.55985124]
[1772739208498,3.73851237,88.972,88.93,3.55985124]
[1772739209290,10.114,88.972,88.931,3.92111967]
[1772739209495,3.73851237,88.987,88.94,3.55985124]
[1772739209689,3.73851237,88.987,88.95,3.55985124]
[1772739210300,3.94635725,89.009,88.96,3.55985124]
[1772739210695,3.94635725,88.999,88.95,3.55985124]
[1772739211095,10.112,88.983,88.95,3.55985124]
[1772739211690,10.111,88.991,88.95,3.55985124]
[1772739211994,3.94635725,88.999,88.95,3.55985124]
[1772739212189,14.05835725,88.99,88.95,3.55985124]
[1772739213496,3.94635725,88.99,88.95,3.55985124]
[1772739214605,10.112,88.989,88.95,3.55985124]
[1772739214787,3.94635725,88.99,88.95,3.55985124]
[1772739215195,3.94635725,88.99,88.94,3.55985124]
[1772739215796,14.05835725,88.99,88.94,7.20616872]
[1772739216798,14.05835725,88.99,88.95,3.55985124]
[1772739216993,14.05835725,88.99,88.94,17.32316872]
[1772739217193,14.05835725,88.99,88.901,20.244]
[1772739217194,14.05835725,88.99,88.95,3.55985124]
[1772739218798,10.113,88.98,88.941,3.64631748]
[1772739218998,7.50620849,88.99,88.941,3.64631748]
[1772739218999,3.94635725,88.99,88.941,3.64631748]
[1772739219495,3.94635725,88.99,88.95,3.55985124]
[1772739219901,3.94635725,89.005,88.96,3.55985124]
[1772739220997,7.50620849,89.02,88.97,3.55985124]
[1772739221195,3.94635725,89.019,88.97,3.55985124]
[1772739221399,3.94635725,89.019,88.879,157.493]
[1772739221400,3.94635725,88.979,88.931,3.64631748]
[1772739221702,3.55985124,88.97,88.92,3.55985124]
[1772739221900,3.55985124,88.97,88.921,3.64631748]
[1772739222096,3.94635725,88.979,88.921,3.64631748]
[1772739222295,3.55985124,88.99,88.941,3.64631748]
[1772739222499,3.94635725,88.996,88.941,3.64631748]
[1772739223402,3.55985124,89.0,88.943,10.117]
[1772739223403,3.94635725,88.995,88.943,10.117]
[1772739223703,3.94635725,88.995,88.941,3.64631748]
[1772739224103,3.94635725,88.989,88.941,3.64631748]
[1772739224300,3.94635725,88.969,88.92,3.55985124]
[1772739224804,10.114,88.966,88.92,3.55985124]
[1772739225907,10.113,88.974,88.93,3.55985124]
[1772739226206,10.113,88.974,88.93,7.20616872]
[1772739226802,10.114,88.967,88.93,7.20616872]
[1772739227805,10.113,88.975,88.941,3.64631748]
[1772739228506,10.112,88.982,88.941,3.64631748]
[1772739228903,3.94635725,88.974,88.93,3.55985124]
[1772739229105,3.94635725,88.974,88.925,3.64631748]
[1772739229905,10.114,88.97,88.925,3.64631748]
[1772739230504,10.115,88.963,88.925,3.64631748]
[1772739230702,10.115,88.963,88.92,3.55985124]
[1772739231104,20.22,89.007,88.911,3.64631748]
[1772739231105,14.06135725,88.955,88.911,3.64631748]
[1772739231298,3.94635725,88.949,88.9,3.55985124]
[1772739232108,10.116,88.947,88.902,10.121]
[1772739232307,10.116,88.947,88.9,7.20616872]
[1772739233806,10.117,88.941,88.9,7.20616872]
[1772739236008,10.118,88.932,88.9,3.64631748]
[1772739237500,3.94635725,88.931,88.89,3.55985124]
[1772739237810,3.94635725,88.929,88.87,3.55985124]
[1772739238207,3.94635725,88.929,88.871,3.64631748]
[1772739238413,3.55985124,88.92,88.871,3.64631748]
[1772739238908,3.55985124,88.92,88.872,3.64631748]
[1772739240604,3.77664158,88.946,88.9,3.55985124]
[1772739240804,3.77664158,88.96,88.92,3.55985124]
[1772739242401,3.77664158,88.974,88.93,3.55985124]
[1772739242600,7.33649282,88.97,88.921,3.60381711]
[1772739243013,3.77664158,88.969,88.921,3.60381711]
[1772739245508,3.77664158,88.959,88.91,3.55985124]
[1772739245812,3.77664158,88.959,88.906,3.60381711]
[1772739246208,3.77664158,88.949,88.9,3.55985124]
[1772739246410,3.77664158,88.949,88.901,3.60381711]
[1772739246812,3.77664158,88.949,88.902,3.60381711]
[1772739247514,3.77664158,88.979,88.921,3.60381711]
[1772739249317,3.55985124,88.97,88.921,3.60381711]
[1772739250619,3.55985124,88.99,88.941,3.60381711]
[1772739250823,3.77664158,89.0,88.96,3.55985124]
[1772739251022,3.77664158,89.015,88.97,3.55985124]
[1772739251433,3.77664158,89.015,88.98,3.55985124]
[1772739251725,3.77664158,89.029,88.98,3.55985124]
[1772739252122,3.77664158,89.029,88.99,3.55985124]
[1772739252418,3.77664158,89.029,88.981,3.60381711]
[1772739252622,3.77664158,89.053,88.981,3.60381711]
[1772739253120,10.106,89.04,88.988,10.112]
[1772739253320,3.77664158,89.053,88.989,3.60381711]
[1772739253925,10.105,89.049,88.992,3.60381711]
[1772739254123,3.77664158,89.053,88.971,3.60381711]
[1772739254724,3.77664158,89.033,88.971,3.60381711]
[1772739255426,10.107,89.03,88.972,13.71681711]
[1772739255621,3.77664158,89.029,88.973,3.60381711]
[1772739255923,1.95506716,89.074,88.991,3.60381711]
[1772739255924,3.77664158,89.058,88.991,3.60381711]
[1772739256318,10.104,89.055,89.0,10.11]
[1772739256925,10.104,89.055,89.0,13.71381711]
[1772739257130,10.104,89.055,89.0,3.60381711]
[1772739257828,10.104,89.055,88.99,9.51740735]
[1772739257829,3.77664158,89.058,89.005,3.60381711]
[1772739258423,10.105,89.05,89.005,3.60381711]
[1772739259123,10.105,89.05,88.99,9.51740735]
[1772739259329,3.77664158,89.049,88.986,3.60381711]
[1772739260425,13.88164158,89.044,88.986,3.60381711]
[1772739260626,3.77664158,89.043,88.97,3.60381711]
[1772739261830,9.51740735,89.05,88.97,3.60381711]
[1772739261831,3.77664158,89.023,88.97,3.60381711]
[1772739262229,3.77664158,89.023,88.978,10.113]
[1772739262935,3.77664158,89.04,88.987,3.60381711]
[1772739263628,3.77664158,89.039,88.987,3.60381711]
[1772739265432,10.106,89.035,88.987,3.60381711]
[1772739265828,3.77664158,89.039,88.987,3.60381711]
[1772739266232,3.77664158,89.039,88.989,3.60381711]
[1772739267338,3.77664158,89.039,88.978,10.113]
[1772739267933,3.77664158,89.039,88.979,3.60381711]
[1772739268137,13.88264158,89.039,88.979,3.60381711]
[1772739268438,3.79666232,89.059,88.979,3.60381711]
[1772739268637,10.105,89.049,88.988,10.112]
[1772739268941,3.79666232,89.048,88.989,3.92114988]
[1772739269634,3.79666232,89.048,88.961,3.92114988]
[1772739270537,3.79666232,89.048,88.96,9.51729889]
[1772739270538,3.79666232,89.048,88.983,3.60450548]
[1772739270936,13.90166232,89.048,88.992,3.60450548]
[1772739271441,3.79666232,89.048,88.992,3.60450548]
[1772739271740,10.107,89.031,88.992,3.60450548]
[1772739271943,3.79666232,89.048,88.961,3.60450548]
[1772739272137,10.108,89.023,88.973,3.60450548]
[1772739272536,3.78833122,89.031,88.973,3.60450548]
[1772739273237,10.107,89.029,88.984,10.112]
[1772739276044,3.78833122,89.052,88.992,3.60450548]
[1772739276443,3.55322662,89.04,88.998,10.111]
[1772739276944,3.55322662,89.04,88.992,3.60450548]
[1772739277240,3.55322662,89.04,88.997,10.111]
[1772739277442,7.34155784,89.04,88.997,10.111]
[1772739277642,7.34155784,89.04,88.992,3.60450548]
[1772739279345,7.34155784,89.04,89.001,10.11]
[1772739279546,7.34155784,89.04,88.992,3.60450548]
[1772739279942,7.34155784,89.04,89.014,10.109]
[1772739280150,10.104,89.059,89.014,10.109]
[1772739280151,3.55322662,89.05,89.014,10.109]
[1772739281343,3.78833122,89.055,89.024,10.108]
[1772739281546,3.55322662,89.05,89.024,10.108]
[1772739282345,3.55322662,89.05,89.001,3.60450548]
[1772739282543,3.78833122,89.049,89.001,3.60450548]
[1772739282854,3.55322662,89.04,89.001,3.60450548]
[1772739284251,3.78833122,89.049,89.001,3.60450548]
[1772739285147,3.78833122,89.049,89.003,10.11]
[1772739285348,3.55322662,89.04,89.003,10.11]
[1772739286452,3.55322662,89.04,89.001,3.60450548]
[1772739287150,3.78833122,89.049,89.001,3.60450548]
[1772739287753,3.78833122,89.049,89.002,10.11]
[1772739287954,3.78833122,89.049,89.002,13.71450548]
[1772739288447,10.105,89.046,89.002,3.60450548]
[1772739292750,7.34155784,89.04,89.002,3.60450548]
[1772739293350,3.78833122,89.039,88.991,3.60450548]
[1772739294659,13.89433122,89.039,88.998,3.60450548]
[1772739296353,10.107,89.03,88.998,3.60450548]
[1772739296659,3.78833122,89.029,88.981,3.60450548]
[1772739297365,10.107,89.026,88.983,3.60450548]
[1772739298463,10.107,89.026,88.986,3.60450548]
[1772739298863,3.78833122,89.029,88.971,3.60450548]
[1772739299164,3.78833122,89.029,88.981,3.60450548]
[1772739299360,3.55322662,89.04,88.991,3.60450548]
[1772739299664,3.78833122,89.043,88.991,3.60450548]
[1772739300370,3.61852901,89.057,89.001,3.65987864]
[1772739300561,3.61852901,89.039,88.99,3.55322662]
[1772739300866,3.61852901,89.039,88.997,10.111]
[1772739301964,3.61852901,89.039,89.005,10.11]
[1772739302363,3.61852901,89.039,88.991,3.65987864]
[1772739302757,3.61852901,89.039,88.98,3.55322662]
[1772739302964,3.61852901,89.039,88.97,20.84272215]
[1772739302965,3.61852901,89.019,88.963,3.65987864]
[1772739303370,3.61852901,89.019,88.987,10.112]
[1772739304157,3.55322662,89.03,88.993,10.111]
[1772739304363,3.55322662,89.03,88.981,3.65987864]
[1772739304866,3.61852901,89.029,88.981,3.65987864]
[1772739305067,3.61852901,89.029,88.984,10.112]
[1772739305664,3.61852901,89.029,88.984,13.77187864]
[1772739307167,3.61852901,89.029,88.994,10.111]
[1772739307568,3.61852901,89.019,88.97,7.21310526]
[1772739307763,3.61852901,89.019,88.971,3.65987864]
[1772739309168,3.61852901,89.019,88.974,3.65987864]
[1772739309960,3.61852901,89.019,88.975,10.113]
[1772739310165,3.61852901,89.019,88.974,3.65987864]
[1772739310870,10.108,89.024,88.981,3.65987864]
[1772739311071,3.55322662,89.03,88.981,3.65987864]
[1772739311672,10.107,89.028,88.985,3.65987864]
[1772739311871,10.107,89.028,88.934,27.65176864]
[1772739311872,3.61852901,89.032,88.991,3.65987864]
[1772739312069,3.61852901,89.045,88.991,3.65987864]
[1772739312373,10.106,89.038,88.991,3.65987864]
[1772739314371,3.61852901,89.029,88.983,10.112]
[1772739315373,3.61852901,89.027,88.983,10.112]
[1772739315775,3.61852901,89.027,88.938,27.65176864]
[1772739315776,3.61852901,89.042,89.0,3.55322662]
[1772739315974,3.61852901,89.042,89.0,7.21310526]
[1772739316574,3.61852901,89.042,89.0,3.65987864]
[1772739317281,7.17175563,89.03,88.987,3.65987864]
[1772739318180,3.61852901,89.029,88.987,3.65987864]
[1772739322681,10.4595912,89.059,88.961,20.84272215]
[1772739322682,3.61852901,89.026,88.975,10.113]
[1772739322884,3.61852901,89.026,88.976,3.65987864]
[1772739323386,10.108,89.023,88.984,3.65987864]
[1772739323583,3.61852901,89.051,88.984,3.65987864]
[1772739323781,3.61852901,89.039,88.984,3.65987864]
[1772739324481,3.61852901,89.039,88.961,20.84272215]
[1772739324482,3.61852901,89.036,88.992,3.65987864]
[1772739324678,3.61852901,89.049,89.001,3.65987864]
[1772739324877,3.61852901,89.049,89.006,3.65987864]
[1772739325886,3.61852901,89.049,89.006,13.76987864]
[1772739326584,3.61852901,89.049,89.007,3.65987864]
[1772739326784,3.61852901,89.049,89.009,10.109]
[1772739328284,3.61852901,89.049,89.007,3.65987864]
[1772739329387,13.8495274,89.048,89.007,3.65987864]
[1772739331790,3.60172024,89.039,88.99,3.55231169]
[1772739332789,3.55231169,89.03,88.98,3.55231169]
[1772739332985,3.55231169,89.03,88.991,10.111]
[1772739333190,10.106,89.038,88.992,3.70972424]
[1772739334388,10.106,89.038,89.0,3.55231169]
[1772739334592,10.106,89.038,89.001,3.70972424]
[1772739334794,10.105,89.044,89.003,3.70972424]
[1772739335395,10.106,89.038,89.003,3.70972424]
[1772739335596,10.106,89.038,88.995,10.111]
[1772739335986,10.106,89.034,88.995,10.111]
[1772739336397,3.60172024,89.019,88.97,3.55231169]
[1772739336790,3.60172024,89.019,88.971,3.70972424]
[1772739337098,3.60172024,89.019,88.971,13.82372424]
[1772739337394,3.60172024,89.019,88.971,3.70972424]
[1772739337592,3.60172024,89.009,88.958,3.70972424]
[1772739337794,3.55231169,89.0,88.958,3.70972424]
[1772739337998,10.11,89.006,88.96,3.55231169]
[1772739338198,10.11,89.006,88.958,3.70972424]
[1772739338199,3.55231169,89.0,88.958,3.70972424]
[1772739338491,7.15403193,89.0,88.958,3.70972424]
[1772739339004,3.60172024,89.0,88.96,3.55231169]
[1772739339187,3.60172024,88.999,88.943,3.70972424]
[1772739339492,7.15403193,88.97,88.928,3.70972424]
[1772739339688,3.60172024,88.969,88.911,3.70972424]
[1772739340294,3.60172024,88.969,88.88,20.248]
[1772739340295,3.60172024,88.969,88.921,3.70972424]
[1772739340798,3.55231169,88.98,88.93,3.55231169]
[1772739340994,7.15403193,88.98,88.93,3.55231169]
[1772739341291,3.60172024,88.977,88.925,3.70972424]
[1772739341497,3.55231169,88.97,88.925,3.70972424]
[1772739341697,3.55231169,88.96,88.91,7.26203593]
[1772739341899,3.60172024,88.969,88.911,3.70972424]
[1772739342100,3.60172024,88.969,88.92,3.55231169]
[1772739342994,3.55231169,88.96,88.911,3.70972424]
[1772739343700,3.60172024,88.959,88.911,3.70972424]
[1772739345494,3.60172024,88.959,88.919,10.12]
[1772739347005,3.55231169,88.97,88.931,10.118]
[1772739347400,3.55231169,88.98,88.932,3.70972424]
[1772739347705,178.19277647,89.054,88.882,20.248]
[1772739347706,3.55231169,88.99,88.94,7.26203593]
[1772739348104,3.55231169,88.99,88.946,10.116]
[1772739348598,3.55231169,88.98,88.946,10.116]
[1772739350208,3.60172024,88.979,88.938,10.117]
[1772739350609,3.60172024,88.979,88.926,3.70972424]
[1772739351505,3.55231169,88.96,88.911,3.70972424]
[1772739351714,3.60172024,88.959,88.911,3.70972424]
[1772739351903,3.55231169,88.95,88.911,3.70972424]
[1772739353010,3.55231169,88.94,88.897,3.70972424]
[1772739354009,3.55231169,88.93,88.882,3.70972424]
[1772739354612,7.15403193,88.93,88.882,3.70972424]
[1772739354906,3.55231169,88.92,88.882,3.70972424]
[1772739355110,3.60172024,88.919,88.866,3.70972424]
[1772739355310,3.55231169,88.91,88.866,3.70972424]
[1772739356011,3.55231169,88.91,88.867,10.125]
[1772739358602,3.60172024,88.909,88.86,3.55231169]
[1772739358809,3.60172024,88.909,88.859,10.126]
[1772739359205,13.72272024,88.909,88.861,13.83572424]
[1772739359405,3.60172024,88.909,88.862,3.70972424]
[1772739359611,3.60172024,88.929,88.888,10.123]
[1772739359811,3.60172024,88.929,88.881,3.70972424]
[1772739360203,3.60172024,88.929,88.883,3.94114293]
[1772739360909,3.60172024,88.929,88.814,157.609]
[1772739360910,3.55231169,88.9,88.856,3.94114293]
[1772739361307,7.44062944,88.91,88.861,3.94114293]
[1772739362012,7.44062944,88.91,88.864,10.126]
[1772739362213,3.55231169,88.9,88.861,3.94114293]
[1772739364413,3.55231169,88.89,88.848,10.128]
[1772739365319,3.88831775,88.899,88.857,10.127]
[1772739365519,3.88831775,88.899,88.848,3.94114293]
[1772739366415,14.01031775,88.899,88.849,10.127]
[1772739367519,14.01031775,88.899,88.852,14.06814293]
[1772739367708,3.55231169,88.9,88.852,3.94114293]
[1772739367709,10.123,88.89,88.852,3.94114293]
[1772739368015,3.55231169,88.89,88.84,3.55231169]
[1772739368519,3.55231169,88.89,88.841,3.94114293]
[1772739368914,10.121,88.907,88.857,3.94114293]
[1772739369119,3.55231169,88.9,88.857,3.94114293]
[1772739369417,3.88831775,88.899,88.857,3.94114293]
[1772739370020,3.88831775,88.899,88.857,14.06814293]
[1772739370519,3.76182338,88.909,88.862,3.94114293]
[1772739370716,7.31413507,88.9,88.848,3.94114293]
[1772739371021,3.76182338,88.899,88.848,3.94114293]
[1772739371220,3.76182338,88.899,88.852,10.127]
[1772739371425,3.55231169,88.91,88.85,3.55231169]
[1772739371619,10.381989,88.979,88.793,157.644]
[1772739371620,3.76182338,88.936,88.881,3.94114293]
[1772739372318,3.76182338,88.936,88.89,13.67531169]
[1772739372617,3.76182338,88.936,88.891,3.94114293]
[1772739372825,3.55231169,88.94,88.893,3.94114293]
[1772739373419,3.76277985,88.939,88.893,3.94114293]
[1772739373924,3.76277985,88.929,88.879,3.94114293]
[1772739374422,3.76277985,88.929,88.88,3.55231169]
[1772739374718,3.85925356,88.919,88.863,3.94114293]
[1772739374925,3.55231169,88.9,88.85,3.55231169]
[1772739375319,3.55231169,88.89,88.848,3.94114293]
[1772739375523,3.85925356,88.899,88.848,3.94114293]
[1772739376323,3.85925356,88.899,88.85,3.55231169]
[1772739376518,3.85925356,88.899,88.86,10.126]
[1772739377924,3.85925356,88.899,88.853,10.127]
[1772739378727,3.85925356,88.899,88.86,3.55231169]
[1772739378918,3.85925356,88.899,88.851,3.94114293]
[1772739380124,3.85925356,88.899,88.861,10.126]
[1772739382726,3.85925356,88.899,88.854,10.127]
[1772739383230,10.122,88.898,88.854,10.127]
[1772739383529,3.55231169,88.89,88.851,3.94114293]
[1772739383729,3.82670595,88.897,88.851,3.94114293]
[1772739384321,3.88831775,88.896,88.852,10.127]
[1772739384922,3.88831775,88.879,88.833,3.94114293]
[1772739385729,3.88831775,88.879,88.836,10.129]
[1772739386036,3.88831775,88.879,88.774,22.79102326]
[1772739386037,3.88831775,88.869,88.82,3.55231169]
[1772739386530,20.243,88.904,88.802,3.94114293]
[1772739386531,3.88831775,88.856,88.802,3.94114293]
[1772739386730,3.56696618,88.85,88.802,3.94114293]
[1772739387135,3.88831775,88.856,88.802,3.94114293]
[1772739387136,3.88831775,88.856,88.811,10.132]
[1772739387526,10.126,88.862,88.812,3.94114293]
[1772739387729,3.56696618,88.86,88.813,10.132]
[1772739388628,7.26743894,88.86,88.813,10.132]
[1772739388835,3.70047276,88.859,88.813,10.132]
[1772739389336,3.70047276,88.892,88.84,3.56696618]
[1772739389534,3.56696618,88.89,88.84,7.48261024]
[1772739390738,7.4929193,88.89,88.84,7.48261024]
[1772739390931,3.56696618,88.88,88.84,3.91564406]
[1772739391131,3.56696618,88.86,88.81,3.56696618]
[1772739392439,3.56696618,88.86,88.81,13.69896618]
[1772739392840,3.94601376,88.859,88.8,3.56696618]
[1772739393044,20.242,88.907,88.789,3.9893118]
[1772739393045,10.129,88.839,88.79,3.56696618]
[1772739393240,3.56696618,88.82,88.789,3.9893118]
[1772739393445,3.56696618,88.82,88.771,3.9893118]
[1772739393645,3.56696618,88.83,88.771,3.9893118]
[1772739394246,3.56696618,88.83,88.78,3.56696618]
[1772739394447,3.94601376,88.826,88.771,3.9893118]
[1772739394848,13.51159699,88.84,88.771,3.9893118]
[1772739395148,10.13,88.827,88.779,10.135]
[1772739396347,14.07501376,88.835,88.779,10.135]
[1772739397347,3.94601376,88.835,88.785,10.135]
[1772739398046,14.07301376,88.851,88.793,3.9893118]
[1772739398247,3.94601376,88.85,88.793,3.9893118]